bitfinex/quotes_ETHUSD_20241019
["timestamp","ask_amount","ask_price","bid_price","bid_amount"]
[1729343154281,1.98505409,2637.2,2636.9,4.91198]
[1729343154478,1.98505409,2637.2,2636.9,8.32496]
[1729343155303,1.98564986,2637.2,2636.9,8.32496]
[1729343156482,1.98564986,2637.2,2636.9,4.91188]
[1729343156689,1.98564986,2637.2,2636.9,8.3249]
[1729343157020,1.98564986,2637.1,2636.9,8.3249]
[1729343157536,1.98564986,2637.2,2636.9,8.3249]
[1729343160032,1.98498774,2637.2,2636.9,8.3249]
[1729343160735,1.98498774,2637.2,2637.0,3.4129]
[1729343160888,1.98498774,2637.2,2636.9,1.4989]
[1729343161301,1.98498774,2637.1,2636.9,1.4989]
[1729343162004,1.98498774,2637.1,2636.7,3.41328]
[1729343162005,1.4982,2637.0,2636.7,3.41328]
[1729343162233,3.48318774,2637.0,2636.7,3.41328]
[1729343162611,3.48318774,2637.0,2636.5,4.89612]
[1729343162612,1.98498774,2636.9,2636.5,3.41352]
[1729343162933,1.98498774,2636.8,2636.3,4.89636]
[1729343163238,3.48285125,2636.8,2636.6,3.41348]
[1729343163395,1.4982,2636.8,2636.5,3.41361]
[1729343164236,1.4982,2636.8,2636.5,6.82715]
[1729343165438,1.98465125,2636.9,2636.5,6.82715]
[1729343165802,1.98465125,2636.9,2636.5,3.41354]
[1729343166203,1.98465125,2636.9,2636.5,6.82707]
[1729343166435,1.98465125,2636.9,2636.5,3.41353]
[1729343169541,1.98465125,2636.8,2636.5,3.41353]
[1729343172111,1.98465125,2636.8,2636.6,3.41336]
[1729343172312,1.98465125,2636.8,2636.5,3.41353]
[1729343172512,1.98465125,2636.8,2636.5,6.82706]
[1729343172739,1.98465125,2636.9,2636.5,3.41353]
[1729343172913,1.98465125,2636.8,2636.5,3.41353]
[1729343177062,1.98465125,2636.8,2636.5,6.82707]
[1729343177548,1.89212384,2637.0,2636.5,3.41353]
[1729343177549,1.98483655,2636.9,2636.5,3.41353]
[1729343177752,1.98483655,2636.9,2636.5,6.82708]
[1729343177974,0.39392384,2637.0,2636.8,1.4826]
[1729343178121,1.98483655,2637.2,2636.8,1.4826]
[1729343178316,1.98483655,2637.2,2637.1,3.41283]
[1729343180538,3.57509184,2637.2,2636.9,3.41309]
[1729343180735,1.98520713,2637.1,2636.7,3.41323]
[1729343180948,1.98520713,2637.0,2636.7,3.41323]
[1729343181149,1.98520713,2637.0,2636.6,3.41341]
[1729343181357,5.39806713,2637.1,2636.6,3.41341]
[1729343181551,1.98520713,2637.0,2636.6,3.41341]
[1729343181930,1.98520713,2636.9,2636.6,3.41341]
[1729343182391,1.98520713,2637.0,2636.6,3.41341]
[1729343183165,1.98520713,2636.9,2636.6,3.41341]
[1729343183462,1.98520713,2637.0,2636.6,3.41341]
[1729343186021,1.98520713,2637.0,2636.7,3.41334]
[1729343186248,5.39806713,2637.1,2636.7,3.41334]
[1729343186486,1.98520713,2637.0,2636.7,3.41334]
[1729343186853,3.41286,2637.1,2636.7,3.41334]
[1729343186854,5.39806713,2637.1,2636.7,3.41334]
[1729343187191,1.98538696,2637.0,2636.7,3.41334]
[1729343187361,5.39824696,2637.1,2636.7,3.41334]
[1729343187554,1.98538696,2637.0,2636.7,3.41334]
[1729343187951,5.39824696,2637.1,2636.7,3.41334]
[1729343188282,1.98538696,2637.0,2636.7,3.41334]
[1729343188850,5.39824696,2637.1,2636.7,3.41334]
[1729343189049,1.98538696,2637.0,2636.7,3.41334]
[1729343189299,3.41286,2637.1,2636.7,3.41334]
[1729343189300,5.39824696,2637.1,2636.7,3.41334]
[1729343189999,1.98538696,2637.0,2636.7,3.41334]
[1729343191794,3.41286,2637.1,2636.7,3.41334]
[1729343191972,1.9856071,2636.9,2636.7,3.41334]
[1729343193167,1.9856071,2637.0,2636.7,3.41334]
[1729343193365,3.5754071,2636.9,2636.5,3.41349]
[1729343193587,3.5754071,2636.9,2636.6,3.41348]
[1729343193787,1.5898,2636.9,2636.6,3.41348]
[1729343193988,3.5754071,2636.9,2636.6,3.41348]
[1729343194586,1.9856071,2637.0,2636.6,3.41348]
[1729343194904,1.9856071,2636.9,2636.7,3.41334]
[1729343196584,1.98555688,2636.9,2636.7,3.41334]
[1729343197186,1.98555688,2636.9,2636.8,0.07584195]
[1729343197369,1.98555688,2637.0,2636.8,0.07584195]
[1729343198310,1.98555688,2637.0,2636.8,3.41321]
[1729343200401,3.57535688,2637.1,2636.8,3.41321]
[1729343200599,1.98555688,2637.0,2636.7,1.5773]
[1729343200896,1.98555688,2636.9,2636.6,3.41336]
[1729343201084,1.98555688,2636.9,2636.7,3.41333]
[1729343201290,1.98555688,2636.9,2636.6,3.41336]
[1729343201489,1.98543843,2637.0,2636.5,1.5857]
[1729343201803,1.98543843,2637.0,2636.6,3.41348]
[1729343202703,5.39841843,2637.0,2636.5,4.99929]
[1729343202910,1.98543843,2636.9,2636.5,4.99929]
[1729343206168,1.98595238,2636.9,2636.5,4.99929]
[1729343206368,1.98595238,2636.9,2636.5,8.41283]
[1729343207170,1.98595238,2636.9,2636.5,8.41278]
[1729343207373,1.98595238,2636.9,2636.5,4.99924]
[1729343207917,1.98595238,2636.9,2636.5,8.41278]
[1729343208908,1.98595238,2636.9,2636.5,4.99924]
[1729343209413,1.98595238,2636.9,2636.5,8.41278]
[1729343210775,1.98595238,2636.8,2636.5,8.41278]
[1729343210977,1.98595238,2636.9,2636.5,8.41278]
[1729343211389,1.98595238,2636.9,2636.5,4.99924]
[1729343211585,1.98595238,2636.8,2636.5,4.99924]
[1729343212285,2.57944424,2636.9,2636.5,8.41278]
[1729343212612,1.98595238,2636.8,2636.5,8.41278]
[1729343212815,1.98595238,2636.8,2636.5,4.99924]
[1729343212986,2.57944424,2636.9,2636.5,4.99924]
[1729343213590,2.57944424,2636.9,2636.5,8.41278]
[1729343213828,1.98595238,2636.8,2636.5,8.41278]
[1729343214031,2.57944424,2636.9,2636.5,8.41278]
[1729343214341,1.98595238,2636.8,2636.5,8.41278]
[1729343214491,2.57944424,2636.9,2636.5,8.41278]
[1729343215814,2.57964348,2636.9,2636.5,8.41278]
[1729343217395,2.55951425,2636.9,2636.5,8.41278]
[1729343223456,2.55951425,2636.9,2636.5,8.41277]
[1729343223887,0.57336263,2636.9,2636.5,8.41277]
[1729343224053,2.56007691,2636.9,2636.5,8.41277]
[1729343225147,2.56007691,2636.9,2636.5,4.99923]
[1729343225350,2.56007691,2636.9,2636.5,8.41276]
[1729343226462,1.98671428,2636.8,2636.5,8.41276]
[1729343226661,1.98671428,2636.8,2636.5,4.99923]
[1729343226868,1.98671428,2636.8,2636.5,8.41277]
[1729343230144,1.98671428,2636.8,2636.5,4.99923]
[1729343230675,1.98671428,2636.8,2636.5,8.41277]
[1729343232839,1.98671428,2636.8,2636.5,4.99923]
[1729343233178,1.98671428,2636.8,2636.6,3.41348]
[1729343233672,0.57336263,2636.9,2636.6,3.41348]
[1729343233673,2.56007691,2636.9,2636.6,3.41348]
[1729343234842,1.98671428,2636.8,2636.6,3.41348]
[1729343235353,1.98671428,2636.8,2636.5,8.41276]
[1729343238263,1.98754217,2636.8,2636.5,8.41276]
[1729343240683,1.98757681,2636.8,2636.5,8.41276]
[1729343241494,1.98757681,2636.8,2636.6,3.41348]
[1729343243283,1.98729261,2636.8,2636.6,3.41348]
[1729343245664,1.98729261,2636.8,2636.5,4.99923]
[1729343245860,1.98729261,2636.8,2636.5,1.5857]
[1729343246165,1.98729261,2636.7,2636.5,4.99931]
[1729343248110,1.579,2636.6,2636.4,3.41372]
[1729343248491,3.56629261,2636.6,2636.4,3.41372]
[1729343248688,1.579,2636.6,2636.2,4.87703]
[1729343248918,1.98729261,2636.5,2636.2,4.87703]
[1729343249081,1.98729261,2636.5,2636.2,1.4631]
[1729343249399,1.579,2636.6,2636.3,3.41387]
[1729343249400,3.56629261,2636.6,2636.3,3.41387]
[1729343251218,1.98729261,2636.6,2636.3,6.82767]
[1729343251403,2.38123528,2636.7,2636.5,3.41358]
[1729343251603,1.98729261,2636.7,2636.5,3.41358]
[1729343252128,1.579,2636.8,2636.5,3.41358]
[1729343252981,1.579,2636.8,2636.5,4.87668]
[1729343253179,1.579,2636.8,2636.5,8.29023]
[1729343253720,1.579,2636.8,2636.5,4.87665]
[1729343253879,1.579,2636.8,2636.6,3.41341]
[1729343254218,0.57336263,2636.9,2636.7,3.4890756]
[1729343255284,0.39395195,2637.1,2636.7,3.41323]
[1729343255887,0.39395195,2637.1,2636.8,1.4631]
[1729343257120,2.77870308,2637.1,2636.8,1.4631]
[1729343257307,0.39395195,2637.1,2636.8,1.4631]
[1729343261533,0.39395195,2637.1,2637.0,3.41296]
[1729343261698,2.38326759,2637.3,2637.0,3.41296]
[1729343262026,3.97486759,2637.4,2637.0,3.41296]
[1729343262226,1.5916,2637.4,2637.0,3.41296]
[1729343262523,4.36844607,2637.4,2637.0,3.41296]
[1729343262938,2.38278095,2637.3,2637.0,3.41296]
[1729343263433,2.38278095,2637.3,2636.8,4.87632]
[1729343264518,5.79537095,2637.3,2636.8,4.87632]
[1729343265090,5.79537095,2637.3,2636.8,8.28948]
[1729343265640,2.38278095,2637.3,2636.9,3.48890667]
[1729343265837,2.38278095,2637.3,2636.9,3.41307]
[1729343265995,4.36844607,2637.4,2637.0,3.41296]
[1729343266999,4.36820553,2637.4,2637.0,3.41296]
[1729343268130,7.78072553,2637.4,2636.8,4.87626]
[1729343268294,7.78072553,2637.4,2636.9,3.41308]
[1729343268933,1.5916,2637.3,2636.9,3.41308]
[1729343269110,3.97414041,2637.3,2636.9,3.41308]
[1729343275155,7.38673041,2637.3,2636.9,3.41308]
[1729343276365,7.38673041,2637.3,2636.8,1.4631]
[1729343276565,7.38673041,2637.3,2636.9,3.41309]
[1729343276867,7.38605584,2637.3,2636.9,3.41309]
[1729343279556,7.38605584,2637.3,2636.5,4.99652]
[1729343279557,1.5853,2637.1,2636.5,4.99652]
[1729343279726,3.96716584,2637.1,2636.5,4.99652]
[1729343279936,4.99814,2637.1,2636.5,4.99652]
[1729343280191,1.5853,2637.0,2636.5,3.41352]
[1729343280471,7.38023584,2637.0,2636.5,3.41352]
[1729343281830,1.5853,2636.8,2636.3,4.9968]
[1729343282170,1.5853,2636.8,2636.4,3.48948113]
[1729343287608,1.5853,2636.8,2636.4,0.07585113]
[1729343287774,4.99856,2636.8,2636.3,3.41379]
[1729343288135,1.5853,2636.8,2636.3,3.41379]
[1729343288443,1.5853,2636.8,2636.3,6.82759]
[1729343288849,1.5853,2636.8,2636.3,3.41379]
[1729343289882,1.5853,2636.8,2636.3,6.82759]
[1729343290434,1.97919516,2636.8,2636.3,6.82759]
[1729343290677,1.97919516,2636.8,2636.3,3.41379]
[1729343292442,1.5853,2636.7,2636.3,3.41379]
[1729343293880,4.99867,2636.7,2636.3,3.41379]
[1729343294080,1.5853,2636.7,2636.3,3.41379]
[1729343295585,4.99866,2636.7,2636.3,3.41379]
[1729343296109,1.5853,2636.7,2636.3,3.41379]
[1729343296819,1.5853,2636.7,2636.1,4.99704]
[1729343297127,1.5853,2636.7,2636.2,3.913674]
[1729343297330,1.5853,2636.5,2636.0,3.41418]
[1729343297484,1.5853,2636.5,2636.0,6.82836]
[1729343297686,1.5853,2636.5,2636.0,3.41418]
[1729343298609,4.99892,2636.5,2636.0,3.41418]
[1729343300594,4.99892,2636.5,2636.0,6.82837]
[1729343300934,5.39256475,2636.5,2636.0,6.82837]
[1729343302237,5.39256475,2636.5,2636.0,3.41418]
[1729343303014,5.39256475,2636.5,2636.0,6.82838]
[1729343304104,5.39256475,2636.5,2636.0,3.41418]
[1729343304553,5.39256475,2636.5,2636.0,6.82837]
[1729343305840,1.97894475,2636.5,2636.1,3.41406]
[1729343306143,1.97894475,2636.5,2636.1,3.41413]
[1729343319603,3.96053745,2636.5,2636.1,3.41413]
[1729343320738,3.96053745,2636.5,2636.2,3.414]
[1729343321999,3.96053745,2636.5,2636.2,4.18026751]
[1729343322203,1.9815927,2636.6,2636.4,3.41374]
[1729343322537,1.98459711,2636.6,2636.4,3.41374]
[1729343325234,1.98459711,2636.6,2636.4,3.41365]
[1729343327347,1.82624452,2636.9,2636.4,3.41365]
[1729343327659,1.98591424,2636.6,2636.4,3.41365]
[1729343330944,1.98591424,2636.6,2636.5,3.41361]
[1729343331148,1.98591424,2636.6,2636.4,3.41365]
[1729343332265,1.9861207,2636.6,2636.4,3.41365]
[1729343337033,1.9864256,2636.6,2636.4,3.41365]
[1729343338965,1.9864256,2636.5,2636.4,3.41365]
[1729343339620,1.9864256,2636.6,2636.4,3.41365]
[1729343340864,1.98653487,2636.6,2636.4,3.41365]
[1729343343702,1.98653487,2636.5,2636.4,3.41365]
[1729343343903,1.98653487,2636.6,2636.4,3.41365]
[1729343344291,1.98653487,2636.5,2636.4,3.41365]
[1729343344742,1.98653487,2636.6,2636.4,3.41365]
[1729343345331,2.38384185,2636.8,2636.4,3.41365]
[1729343345332,1.98651199,2636.5,2636.4,3.41365]
[1729343347888,2.38381439,2636.8,2636.4,3.41365]
[1729343347889,1.98651199,2636.6,2636.4,3.41365]
[1729343349843,1.98714549,2636.5,2636.4,3.41365]
[1729343350203,1.98714549,2636.6,2636.4,3.41365]
[1729343350503,1.98714549,2636.5,2636.4,3.41365]
[1729343356648,1.98714549,2636.5,2636.4,3.41218415]
[1729343358118,1.98714549,2636.6,2636.5,3.41361]
[1729343358317,0.39564452,2636.9,2636.5,3.41361]
[1729343358318,1.98714549,2636.7,2636.6,3.41348]
[1729343359108,1.98714549,2636.8,2636.7,3.41335]
[1729343359337,1.98744908,2636.8,2636.7,3.41335]
[1729343364352,1.98684326,2636.8,2636.7,3.41335]
[1729343366650,1.98684326,2636.8,2636.6,3.41347]
[1729343366809,1.98684326,2636.8,2636.5,1.4258]
[1729343366810,1.4234,2636.6,2636.4,3.41365]
[1729343367011,3.41024326,2636.6,2636.2,3.41391]
[1729343367314,1.98684326,2636.5,2636.2,3.41391]
[1729343368416,1.98684326,2636.5,2636.1,3.41405]
[1729343368918,1.98684326,2636.5,2636.2,3.41398]
[1729343369323,1.98684326,2636.5,2636.0,3.41418]
[1729343369557,3.41024326,2636.4,2636.0,3.41418]
[1729343369949,1.98684326,2636.3,2636.0,3.41418]
[1729343370453,3.41024326,2636.4,2636.1,3.41411]
[1729343370655,1.4234,2636.6,2636.1,4.91751]
[1729343370864,1.4234,2636.6,2636.3,3.41386]
[1729343385785,2.77962261,2636.8,2636.4,3.41374]
[1729343386093,2.77962261,2636.8,2636.4,1.4383]
[1729343386739,6.19285261,2636.8,2636.4,1.4383]
[1729343388573,2.77962261,2636.8,2636.4,1.4383]
[1729343389074,6.19286261,2636.8,2636.4,1.4383]
[1729343389276,0.39567878,2636.8,2636.5,3.41359]
[1729343389489,9.85394383,2637.0,2636.6,3.41342]
[1729343389635,10.50962383,2637.1,2636.5,3.41359]
[1729343389835,2.38394383,2637.0,2636.5,3.41353]
[1729343390081,2.38394383,2637.0,2636.6,3.41347]
[1729343390281,4.07948129,2637.1,2636.4,1.4383]
[1729343390488,4.07948129,2637.1,2636.8,4.85142]
[1729343390489,2.77958129,2637.1,2636.8,4.85142]
[1729343390986,0.39563746,2637.1,2636.8,8.26457]
[1729343391147,0.39563746,2637.1,2636.8,4.85142]
[1729343391685,0.39563746,2637.1,2636.9,3.41308]
[1729343391884,0.39563746,2637.1,2636.9,3.41309]
[1729343392177,0.39563746,2637.1,2636.8,4.85142]
[1729343393376,1.2999,2637.4,2636.9,3.41308]
[1729343393377,2.38394383,2637.3,2636.9,3.41308]
[1729343393689,3.68384383,2637.4,2637.1,3.41276]
[1729343394681,7.09633383,2637.4,2636.9,3.41299]
[1729343394978,2.38394383,2637.3,2636.8,1.4383]
[1729343395185,5.79653383,2637.3,2636.8,1.4383]
[1729343395482,5.79653383,2637.3,2636.8,4.85145]
[1729343395483,2.38394383,2637.3,2636.8,4.85145]
[1729343395779,2.38394383,2637.3,2636.9,3.41302]
[1729343396484,7.49201707,2637.4,2636.9,3.41302]
[1729343396669,2.38394383,2637.3,2636.9,3.41302]
[1729343397183,7.49201707,2637.4,2636.9,3.41302]
[1729343397483,7.49053554,2637.4,2636.9,3.41302]
[1729343399052,4.71268,2637.2,2636.6,3.41344]
[1729343399286,7.0951423,2637.2,2636.6,3.41344]
[1729343399488,7.0951423,2637.2,2636.7,3.41333]
[1729343401217,7.09471142,2637.2,2636.7,3.41333]
[1729343405254,7.49035739,2637.2,2636.7,3.41333]
[1729343405465,7.49046464,2637.2,2636.7,3.41333]
[1729343406908,4.07768464,2637.2,2636.8,3.41314]
[1729343407511,1.69554597,2637.2,2636.8,3.41314]
[1729343408831,1.69554597,2637.2,2636.8,4.79004]
[1729343409048,0.39564597,2637.2,2636.8,8.20318]
[1729343409211,0.39564597,2637.2,2636.8,4.79004]
[1729343410342,0.39564597,2637.2,2637.0,3.4129]
[1729343411817,0.39564597,2637.2,2637.0,6.82579]
[1729343413164,0.39564597,2637.2,2637.1,3.41283]
[1729343413357,0.39564597,2637.2,2637.1,4.78973]
[1729343414561,0.39564597,2637.2,2637.0,3.41288]
[1729343415420,0.39564597,2637.2,2637.0,6.82576]
[1729343415621,0.39564597,2637.2,2637.0,3.41288]
[1729343415828,0.39564597,2637.2,2637.1,3.41283]
[1729343417965,0.39564597,2637.2,2636.9,1.3769]
[1729343418121,0.39564597,2637.2,2637.0,6.82577]
[1729343418770,0.39564597,2637.2,2637.1,3.41283]
[1729343420832,0.39564597,2637.2,2637.0,6.82577]
[1729343421032,0.39564597,2637.2,2637.0,3.41288]
[1729343421365,0.39564597,2637.2,2637.1,3.41283]
[1729343422334,0.39564597,2637.2,2637.0,6.82576]
[1729343424666,0.39564597,2637.2,2637.1,3.41283]
[1729343428088,0.39564597,2637.2,2637.1,5.69112684]
[1729343428255,3.86490592,2637.8,2637.4,3.41237]
[1729343428256,2.38320508,2637.6,2637.4,3.41237]
[1729343428456,0.39569315,2637.5,2637.4,3.41237]
[1729343429291,0.39569315,2637.5,2637.4,4.79457]
[1729343429492,0.39569315,2637.5,2637.4,4.87039493]
[1729343429664,0.39569315,2637.5,2637.4,5.62286649]
[1729343429851,0.39569315,2637.5,2637.4,5.69869003]
[1729343430053,0.39569315,2637.5,2637.4,5.62286649]
[1729343431090,0.39569315,2637.5,2637.4,5.62294649]
[1729343431399,0.39569315,2637.5,2637.4,4.79465]
[1729343433192,0.39569315,2637.5,2637.4,1.3822]
[1729343433360,0.39569315,2637.5,2637.2,3.41263]
[1729343434310,3.86489135,2637.5,2637.2,3.41263]
[1729343434610,2.78039135,2637.5,2637.2,3.41263]
[1729343435589,2.78039135,2637.5,2637.2,6.82525]
[1729343436500,2.78039135,2637.5,2637.2,3.41262]
[1729343441897,2.78039135,2637.5,2637.0,3.41296]
[1729343442060,2.78039135,2637.5,2637.1,3.41282]
[1729343442263,2.78039135,2637.5,2637.0,3.41296]
[1729343443012,2.3846982,2637.4,2637.0,3.41296]
[1729343444891,2.3846982,2637.4,2636.9,1.3822]
[1729343445164,2.3846982,2637.4,2637.0,3.41295]
[1729343449702,2.3846982,2637.4,2637.0,3.41289]
[1729343449884,2.3846982,2637.4,2637.0,3.41288]
[1729343451221,2.3846982,2637.3,2637.0,3.41288]
[1729343451717,3.3032982,2637.3,2637.0,3.41288]
[1729343452524,3.3032982,2637.3,2636.9,3.41307]
[1729343452688,6.7159682,2637.3,2636.7,3.41335]
[1729343452887,0.9186,2637.1,2636.7,3.41335]
[1729343453083,3.30521252,2637.1,2636.7,3.41335]
[1729343453288,0.9186,2637.1,2636.7,3.41335]
[1729343454830,0.9186,2637.1,2636.6,4.67429]
[1729343455122,0.9186,2637.1,2636.8,3.41319]
[1729343457587,0.9186,2637.1,2636.8,6.82635]
[1729343460815,0.9186,2637.1,2636.8,3.41316]
[1729343463014,0.9186,2637.1,2636.9,3.41309]
[1729343465740,3.31064929,2637.2,2636.9,3.41309]
[1729343466943,0.92499697,2637.2,2636.9,3.41309]
[1729343467253,3.31064929,2637.2,2636.9,3.41309]
[1729343468645,0.92499697,2637.2,2636.9,3.41309]
[1729343469824,0.92499697,2637.2,2636.8,3.41316]
[1729343470030,0.92499697,2637.2,2636.9,3.41303]
[1729343470598,0.92499697,2637.2,2636.9,3.41309]
[1729343472723,0.92499697,2637.2,2636.9,4.71079]
[1729343472724,0.39559697,2637.2,2636.9,4.71079]
[1729343473246,0.39559697,2637.2,2636.8,3.41316]
[1729343474027,0.39559697,2637.2,2636.8,6.82632]
[1729343474657,0.39559697,2637.2,2636.8,3.41316]
[1729343476215,0.39559697,2637.2,2637.0,3.4129]
[1729343479261,0.39559697,2637.2,2637.0,6.8258]
[1729343479479,0.39559697,2637.2,2637.1,3.41283]
[1729343479625,2.38386797,2637.5,2637.3,3.41245]
[1729343479828,2.38386797,2637.6,2637.3,3.41245]
[1729343480063,0.39554984,2637.5,2637.3,3.41245]
[1729343482528,0.39554984,2637.5,2637.3,0.792244]
[1729343482869,2.38475742,2637.7,2637.4,4.50975]
[1729343483227,2.91415742,2637.8,2637.4,4.50966]
[1729343485071,2.91305883,2637.8,2637.4,4.50966]
[1729343487562,2.91305883,2637.8,2637.5,3.41225]
[1729343487764,0.5294,2637.8,2637.5,3.41225]
[1729343487992,2.38365883,2637.9,2637.5,3.41225]
[1729343489871,2.38235924,2637.9,2637.5,3.41225]
[1729343490443,7.69072924,2638.0,2637.5,3.41225]
[1729343490881,8.08634453,2638.0,2637.5,3.41225]
[1729343493281,4.67457453,2638.0,2637.5,3.92098034]
[1729343493591,2.29221529,2638.0,2637.7,4.50929]
[1729343493878,2.29221529,2638.0,2637.7,1.0973]
[1729343496194,2.29221529,2638.0,2637.7,4.50935]
[1729343496347,2.29221529,2638.0,2637.7,8.77195489]
[1729343496548,2.29221529,2638.0,2637.7,5.35990489]
[1729343496751,1.8966,2638.0,2637.7,8.77189489]
[1729343496940,1.8966,2638.0,2637.7,5.35990489]
[1729343497543,1.3966,2638.0,2637.7,5.35990489]
[1729343497748,1.3966,2638.0,2637.8,0.53599049]
[1729343500296,1.3966,2638.0,2637.8,3.94792049]
[1729343501289,1.3966,2638.0,2637.8,7.35978049]
[1729343501496,1.3966,2638.0,2637.8,3.94785049]
[1729343503173,1.3966,2638.0,2637.8,7.35971049]
[1729343503369,1.3966,2638.0,2637.8,3.94785049]
[1729343505671,1.3966,2638.0,2637.9,3.91631505]
[1729343505867,1.3966,2638.0,2637.9,4.96511505]
[1729343515921,1.3966,2638.0,2637.9,1.55331505]
[1729343516093,1.3966,2638.0,2637.9,4.96511505]
[1729343516284,1.3966,2638.0,2637.9,3.91631505]
[1729343521331,1.3966,2638.0,2637.9,0.50451505]
[1729343521541,1.3966,2638.0,2637.9,3.91631505]
[1729343523092,1.3966,2638.0,2637.9,0.50451505]
[1729343523510,1.3966,2638.0,2637.9,3.91631505]
[1729343524134,1.3966,2638.0,2637.8,3.41185]
[1729343524135,1.3966,2638.0,2637.8,3.41193]
[1729343524337,1.3966,2638.0,2637.6,3.4121]
[1729343524338,1.7364,2638.0,2637.6,3.4121]
[1729343530675,1.3966,2638.0,2637.7,1.1061]
[1729343536529,1.3966,2638.0,2637.7,4.5181]
[1729343539328,1.3966,2638.0,2637.7,3.412]
[1729343539538,0.0447,2637.9,2637.5,4.51831]
[1729343540381,0.0447,2637.9,2637.5,1.1061]
[1729343540547,0.0447,2637.9,2637.6,3.41217]
[1729343547854,0.0447,2637.9,2637.6,6.82429]
[1729343548175,0.0447,2637.9,2637.6,3.41212]
[1729343549664,0.0447,2637.9,2637.7,3.41199]
[1729343549871,0.0447,2637.9,2637.6,6.82421]
[1729343553870,0.0447,2637.9,2637.7,3.41205]
[1729343561390,1.98985671,2638.0,2637.7,3.41205]
[1729343565625,1.98985671,2638.0,2637.7,3.41199]
[1729343571375,1.98985671,2638.0,2637.7,6.82397]
[1729343571640,1.98985671,2638.0,2637.7,3.41198]
[1729343575938,1.98985671,2638.0,2637.7,6.82397]
[1729343576348,1.98985671,2638.0,2637.7,3.41198]
[1729343577840,1.3966,2638.0,2637.7,3.41198]
[1729343578025,1.98983964,2638.0,2637.7,3.41198]
[1729343582451,1.98983964,2638.0,2637.6,1.0224]
[1729343582452,1.98983964,2638.0,2637.6,4.43458]
[1729343582634,5.40158964,2638.0,2637.4,4.37065]
[1729343582816,3.412,2637.8,2637.2,4.37082]
[1729343583015,3.412,2637.8,2637.3,3.41256]
[1729343583547,3.80638627,2637.8,2637.3,3.41256]
[1729343585815,3.41226,2637.6,2637.1,3.41277]
[1729343586668,3.41234,2637.5,2637.1,3.41277]
[1729343590323,3.41234,2637.5,2637.0,5.06040241]
[1729343591663,3.80640627,2637.8,2637.0,1.64748241]
[1729343591843,3.41206,2637.7,2637.2,3.4127]
[1729343594153,3.80640627,2637.8,2637.3,3.41249]
[1729343594459,3.80640627,2637.8,2637.3,4.37069]
[1729343595252,0.39438627,2637.8,2637.3,4.37069]
[1729343595453,0.39438627,2637.8,2637.5,3.4122]
[1729343596640,0.39438627,2637.8,2637.5,6.82443]
[1729343596843,0.39438627,2637.8,2637.5,3.4122]
[1729343597627,0.39438627,2637.8,2637.6,3.41217]
[1729343598036,0.39438627,2637.8,2637.5,3.4122]
[1729343598266,0.39438627,2637.8,2637.6,0.3849269]
[1729343598621,0.39438627,2637.8,2637.6,3.7970969]
[1729343598847,0.39438627,2637.8,2637.6,0.3849269]
[1729343603307,0.39438627,2637.8,2637.5,3.4122]
[1729343603593,0.39438627,2637.8,2637.5,6.82444]
[1729343604087,0.39438627,2637.8,2637.6,3.41206]
[1729343604257,1.98983964,2638.0,2637.7,0.9391]
[1729343604456,1.98983964,2638.0,2637.8,3.4119]
[1729343606255,1.98983964,2638.0,2637.8,4.188206]
[1729343606994,1.98983964,2638.0,2637.8,0.776306]
[1729343609694,1.98983964,2638.0,2637.8,3.41186]
[1729343612296,1.98983964,2638.0,2637.9,3.4118]
[1729343612987,1.3966,2638.0,2637.9,3.4118]
[1729343622090,1.3966,2638.0,2637.7,0.9391]
[1729343622295,1.3966,2638.0,2637.9,3.4118]
[1729343626414,1.3966,2638.0,2637.8,3.41192]
[1729343626616,1.3966,2638.0,2637.7,4.35107]
[1729343626822,1.3966,2638.0,2637.8,3.41193]
[1729343626987,1.3966,2638.0,2637.7,4.786177]
[1729343626988,1.3966,2638.0,2637.9,3.4118]
[1729343629641,1.3966,2638.0,2637.9,4.4397]
[1729343635408,1.3966,2638.0,2637.9,1.0279]
[1729343635608,1.3966,2638.0,2637.8,3.41191]
[1729343635820,1.3966,2638.0,2637.8,3.41186]
[1729343636017,1.3966,2638.0,2637.9,3.4118]
[1729343637020,1.3966,2638.0,2637.8,3.41186]
[1729343638064,1.3966,2638.0,2637.7,3.847157]
[1729343638233,1.3966,2638.0,2637.6,3.41211]
[1729343638423,4.80827,2638.0,2637.4,4.44026]
[1729343638620,4.80827,2638.0,2637.4,3.41233]
[1729343638935,4.80827,2638.0,2637.5,3.4123]
[1729343639128,5.20287121,2638.0,2637.5,3.4123]
[1729343640223,8.61461121,2638.0,2637.5,3.4123]
[1729343640423,5.20287121,2638.0,2637.5,3.4123]
[1729343641055,5.20287121,2638.0,2637.6,3.41217]
[1729343641665,5.20287121,2638.0,2637.5,3.4123]
[1729343641837,5.20287121,2638.0,2637.5,6.82455]
[1729343642163,5.20287121,2638.0,2637.5,7.80905]
[1729343642374,5.20287121,2638.0,2637.5,4.39674]
[1729343642522,1.79120121,2638.0,2637.6,3.41217]
[1729343642722,1.79120121,2638.0,2637.6,4.20064318]
[1729343642921,1.3966,2638.0,2637.7,3.41195]
[1729343643523,1.3966,2638.0,2637.7,3.41206]
[1729343644834,1.3966,2638.0,2637.6,4.20064318]
[1729343645034,1.3966,2638.0,2637.8,3.4119]
[1729343645832,1.3966,2638.0,2637.8,3.41185]
[1729343646240,1.3966,2638.0,2637.8,6.82371]
[1729343646440,1.3966,2638.0,2637.8,3.41185]
[1729343646937,1.3966,2638.0,2637.8,4.39635]
[1729343647672,1.3966,2638.0,2637.9,3.4118]
[1729343667215,1.3966,2638.0,2637.9,4.742615]
[1729343669509,1.3966,2638.0,2637.9,5.710615]
[1729343679540,0.39452415,2638.6,2638.5,3.41102]
[1729343679866,0.59319625,2639.0,2638.6,3.41082]
[1729343680023,0.59319625,2639.0,2638.7,0.782524]
[1729343680229,0.59319625,2639.0,2638.6,3.41089]
[1729343680637,0.59319625,2639.0,2638.5,4.41442]
[1729343680843,0.59319625,2639.0,2638.7,3.41076]
[1729343681228,0.59319625,2639.0,2638.8,3.41056]
[1729343681531,0.59319625,2639.0,2638.9,3.41051]